[Event "Orbis-2 IM 2018"]
[Site "Paracin"]
[Date "2018.12.07"]
[Round "6"]
[White "Sahil, Tickoo"]
[Black "Rakshitta Ravi"]
[Result "1/2-1/2"]
[ECO "A46"]
[WhiteElo "2224"]
[BlackElo "2141"]
[Annotator "NA"]
[PlyCount "143"]
[EventDate "2018.12.03"]
[EventType "tourn"]
[EventCountry "SRB"]
[SourceTitle "playchess.com"]
[Source "ChessBase"]
[SourceQuality "1"]
[TimeControl "40/5400+30:1800+30"]

1. d4 {[%emt 0:00:00]} Nf6 {[%emt 0:01:03]} 2. Nf3 {[%emt 0:00:00]} e6 {[%emt 0:00:09]} 3. Bf4 {[%emt 0:00:00]} Be7 {[%emt 0:00:29]} 4. c3 {[%emt 0:05:59] A46: 1 d4 Nf6 2 Nf3 e6: Torre, London and Colle Systems} O-O {[%emt 0:01:43]} 5. Nbd2 {[%emt 0:02:03]} d5 {[%emt 0:00:15]} (5... Nh5 $5 {[%cal Rh5f4]} 6. e3 Nxf4 7. exf4 d5 $11) 6. e3 {[%emt 0:00:39]} b6 {[%emt 0:01:22] LiveBook: 3 Games} 7. Qb1 $146 {[%emt 0:13:19]} ({Predecessor:} 7. Ne5 Nfd7 8. Ndf3 f6 9. Nxd7 Qxd7 10. a4 a5 11. Bd3 Ba6 12. O-O c5 13. Re1 Bxd3 14. Qxd3 {0-1 (56) Appel,R (2541)-Bareev,E (2655) Mainz 2008}) 7... Ba6 {[%emt 0:03:31]} 8. Bxa6 {[%emt 0:00:24]} Nxa6 {[%emt 0:00:01]} 9. e4 {[%emt 0:02:51]} dxe4 {[%emt 0:02:56]} 10. Nxe4 {[%emt 0:00:16]} c5 {[%emt 0:02:31]} 11. O-O {[%emt 0:11:00]} cxd4 {[%emt 0:01:17]} 12. Nxd4 {[%emt 0:04:24]} Qd5 {[%emt 0:05:01]} 13. Nxf6+ {[%emt 0:07:02]} Bxf6 {[%emt 0:00:03]} 14. Rd1 {[%emt 0:01:35]} Rfd8 {[%emt 0:05:51]} 15. Nb3 {[%emt 0:01:21]} Qc4 {[%emt 0:01:41]} 16. Bg3 {[%emt 0:07:00]} Rxd1+ {[%emt 0:09:57]} 17. Qxd1 {[%emt 0:00:10]} Rd8 {[%emt 0:00:07]} 18. Qf1 {[%emt 0:00:22]} Qxf1+ {[%emt 0:02:25]} 19. Kxf1 {[%emt 0:01:33]} Kf8 {[%emt 0:00:13]} 20. Ke2 {[%emt 0:00:28]} Ke7 {[%emt 0:00:17]} 21. f3 {[%emt 0:01:11]} Rd5 {[%emt 0:01:02]} 22. Rd1 {[%emt 0:00:39]} Rxd1 {[%emt 0:01:24]} 23. Kxd1 {[%emt 0:00:01]} Kd7 {[%emt 0:00:26]} 24. Kc2 {[%emt 0:00:30]} Kc6 {[%emt 0:00:15]} 25. Kd3 {[%emt 0:03:05]} Kd5 {[%emt 0:02:26]} 26. Bf2 {[%emt 0:06:04]} g6 {[%emt 0:05:07]} 27. a3 {[%emt 0:09:39]} e5 {[%emt 0:06:24]} 28. Nd2 {[%emt 0:03:48]} Be7 {[%emt 0:04:20]} 29. c4+ {[%emt 0:01:08]} Ke6 {[%emt 0:01:24]} 30. b4 {[%emt 0:00:29]} Nb8 {[%emt 0:02:55]} 31. Nb1 {[%emt 0:06:57]} Na6 {[%emt 0:16:15]} 32. Nc3 {[%emt 0:01:55]} Nc7 {[%emt 0:00:10]} 33. Na4 {[%emt 0:06:41]} f5 {[%emt 0:06:20]} 34. Nc3 {[%emt 0:02:56]} Kd7 {[%emt 0:01:11]} 35. Nd5 {[%emt 0:01:20]} Bd8 {[%emt 0:09:41]} 36. Nxc7 {[%emt 0:00:27]} Bxc7 {[%emt 0:00:26]} 37. h3 {[%emt 0:00:13]} Bd6 {[%emt 0:00:39]} 38. Kc3 {[%emt 0:00:42]} Ke6 {[%emt 0:03:51]} 39. Kd3 {[%emt 0:00:25]} Kd7 {[%emt 0:00:16]} 40. Be3 {[%emt 0:00:00]} Kc7 {[%emt 0:00:00]} 41. g4 {[%emt 0:01:44]} a5 {[%emt 0:04:37]} 42. c5 {[%emt 0:02:00]} bxc5 {[%emt 0:00:16]} 43. bxa5 {[%emt 0:00:01]} Kc6 {[%emt 0:01:58]} 44. gxf5 {[%emt 0:01:53]} gxf5 {[%emt 0:00:02]} 45. Kc4 {[%emt 0:00:09]} e4 {[%emt 0:05:51]} 46. fxe4 {[%emt 0:01:31]} fxe4 {[%emt 0:00:01]} 47. a6 {[%emt 0:02:08]} Kb6 $11 {[%emt 0:00:11]} 48. Kd5 {[%emt 0:07:13]} Bf8 {[%emt 0:00:02]} 49. a7 {[%emt 0:03:13]} Kxa7 {[%emt 0:00:06]} 50. Kxe4 {[%emt 0:00:01]} Kb6 {[%emt 0:00:09]} 51. Kd3 {[%emt 0:03:31]} Kb5 {[%emt 0:00:06]} 52. Bc1 {[%emt 0:00:27]} c4+ {[%emt 0:00:45]} 53. Kc2 {[%emt 0:02:34]} h5 {[%emt 0:00:14]} 54. Bb2 {[%emt 0:00:44]} Ka4 {[%emt 0:00:06]} 55. Bc1 {[%emt 0:00:36]} Bxa3 {[%emt 0:00:20]} 56. Bxa3 {[%emt 0:00:17]} Kxa3 {[%emt 0:00:04]} 57. Kc3 {[%emt 0:00:00]} h4 {[%emt 0:00:06]} 58. Kxc4 {[%emt 0:00:04]} Ka4 {[%emt 0:00:02]} 59. Kd4 {[%emt 0:00:06]} Kb4 {[%emt 0:00:02]} 60. Ke4 {[%emt 0:00:03]} Kc5 {[%emt 0:00:06]} 61. Kf5 {[%emt 0:00:01]} Kd5 {[%emt 0:00:15]} 62. Kg5 {[%emt 0:00:02]} Ke5 {[%emt 0:00:03]} 63. Kxh4 {[%emt 0:00:04]} Kf6 {[%emt 0:00:02]} 64. Kh5 {[%emt 0:00:04]} Kg7 {[%emt 0:00:02]} 65. h4 {[%emt 0:00:03]} Kh7 {[%emt 0:00:07]} 66. Kg5 {[%emt 0:00:02]} Kg7 {[%emt 0:00:01]} 67. h5 {[%emt 0:00:01]} Kh7 {[%emt 0:00:15]} 68. h6 {[%emt 0:00:01]} Kg8 {[%emt 0:00:01]} 69. Kh5 {[%emt 0:00:06]} Kh7 {[%emt 0:00:07]} 70. Kg5 {[%emt 0:00:02]} Kg8 {[%emt 0:00:01]} 71. Kg6 {[%emt 0:00:00]} Kh8 {[%emt 0:00:01]} 72. h7 {[%emt 0:00:01]} 1/2-1/2